fUSD/lending_fUSD_20250606
["ID","MTS","AMOUNT","RATE_DAILY","PERIOD"]
[364768418,1749235841360,-546.63,0.00027397,5]
[364768419,1749235841369,-480.0,0.00027397,5]
[364768420,1749235841380,-480.0,0.00027397,5]
[364768421,1749235841390,-480.0,0.00027397,5]
[364768422,1749235841401,-480.0,0.00027397,5]
[364768423,1749235841410,-480.0,0.00027397,5]
[364768424,1749235841420,-907.7,0.00027397,5]
[364768425,1749235841429,-480.0,0.00027397,5]
[364768426,1749235841438,-626.44,0.00027397,5]
[364768427,1749235841448,-480.0,0.00027397,5]
[364768428,1749235841457,-480.0,0.00027397,5]
[364768429,1749235841466,-480.0,0.00027397,5]
[364768430,1749235841475,-480.0,0.00027397,5]
[364768431,1749235841484,-480.0,0.00027397,5]
[364768432,1749235841494,-527.13,0.00027397,5]
[364768433,1749235841503,-480.0,0.00027397,5]
[364768434,1749235841513,-480.0,0.00027397,5]
[364768435,1749235841522,-480.0,0.00027397,5]
[364768436,1749235841531,-480.0,0.00027397,5]
[364768437,1749235841540,-480.0,0.00027397,5]
[364768438,1749235841550,-169.411927,0.00027397,7]
[364768439,1749235841559,-680.1,0.00027397,5]
[364768440,1749235841569,-480.0,0.00027397,5]
[364768441,1749235841579,-480.0,0.00027397,5]
[364768442,1749235841588,-480.0,0.00027397,5]
[364768443,1749235841598,-480.0,0.00027397,5]
[364768444,1749235841608,-169.411927,0.00027397,7]
[364768445,1749235841617,-480.0,0.00027397,5]
[364768446,1749235841627,-480.0,0.00027397,5]
[364768447,1749235841637,-1026.69,0.00027397,5]
[364768448,1749235841647,-480.0,0.00027397,5]
[364768449,1749235841657,-480.0,0.00027397,5]
[364768450,1749235841666,-1021.79,0.00027397,5]
[364768451,1749235841676,-632.33,0.00027397,5]
[364768452,1749235841687,-480.0,0.00027397,5]
[364768453,1749235841697,-567.69,0.00027397,5]
[364768454,1749235841706,-480.0,0.00027397,5]
[364768455,1749235841716,-480.0,0.00027397,5]
[364768456,1749235841727,-1155.48,0.00027397,5]
[364768457,1749235841735,-313.3851527,0.00027397,5]
[364768458,1749235841744,-500.0,0.00027397,5]
[364768459,1749235841753,-480.0,0.00027397,5]
[364768460,1749235841763,-480.0,0.00027397,5]
[364768461,1749235841772,-491.32292481,0.00027397,5]
[364768462,1749235841782,-480.0,0.00027397,5]
[364768463,1749235841791,-783.35,0.00027397,5]
[364768464,1749235841800,-403.82998113,0.00027397,5]
[364768465,1749235841810,-151.0,0.00027397,7]
[364768466,1749235841820,-480.0,0.00027397,5]
[364768467,1749235841830,-480.0,0.00027397,5]
[364768468,1749235841839,-480.0,0.00027397,5]
[364768469,1749235841850,-480.0,0.00027397,5]
[364768470,1749235841860,-480.0,0.00027397,5]
[364768471,1749235841869,-1021.44,0.00027397,5]
[364768472,1749235841878,-151.0,0.00027397,7]
[364768473,1749235841888,-1360.94,0.00027397,5]
[364768474,1749235841897,-565.65,0.00027397,5]
[364768475,1749235841906,-480.0,0.00027397,5]
[364768476,1749235841915,-614.29,0.00027397,5]
[364768477,1749235841925,-480.0,0.00027397,5]
[364768478,1749235841935,-843.01,0.00027397,5]
[364768479,1749235841944,-480.0,0.00027397,5]
[364768480,1749235841954,-659.74,0.00027397,5]
[364768481,1749235841963,-480.0,0.00027397,5]
[364768482,1749235841973,-480.0,0.00027397,5]
[364768483,1749235841982,-480.0,0.00027397,5]
[364768484,1749235841992,-820.86,0.00027397,5]
[364768485,1749235842001,-524.03,0.00027397,5]
[364768486,1749235842010,-480.0,0.00027397,5]
[364768487,1749235842019,-480.0,0.00027397,5]
[364768488,1749235842029,-480.0,0.00027397,5]
[364768489,1749235842038,-516.61907621,0.00027397,5]
[364768490,1749235842047,-480.0,0.00027397,5]
[364768491,1749235842056,-480.0,0.00027397,5]
[364768492,1749235842066,-299.41537911,0.00027397,5]
[364768493,1749235842075,-743.46,0.00027397,5]
[364768494,1749235842084,-480.0,0.00027397,5]
[364768495,1749235842093,-515.32,0.00027397,5]
[364768496,1749235842103,-151.0,0.00027397,7]
[364768497,1749235842112,-1790.46,0.00027397,5]
[364768498,1749235842121,-151.0,0.00027397,7]
[364768499,1749235842131,-480.0,0.00027397,5]
[364768500,1749235842140,-151.0,0.00027397,7]
[364768501,1749235842152,-151.0,0.00027397,7]
[364768502,1749235842161,-510.71684663,0.00027397,5]
[364768503,1749235842173,-747.94,0.00027397,5]
[364768504,1749235842182,-480.0,0.00027397,5]
[364768505,1749235842191,-628.98,0.00027397,5]
[364768506,1749235842200,-479.37959101,0.00027397,5]
[364768507,1749235842209,-480.0,0.00027397,5]
[364768508,1749235842219,-1814.431584,0.00027397,7]
[364768509,1749235842228,-480.0,0.00027397,5]
[364768510,1749235842238,-480.0,0.00027397,5]
[364768511,1749235842248,-480.0,0.00027397,5]
[364768512,1749235842257,-1814.431584,0.00027397,7]
[364768513,1749235842268,-491.43,0.00027397,5]
[364768514,1749235842277,-480.0,0.00027397,5]
[364768515,1749235842286,-480.0,0.00027397,5]
[364768516,1749235842295,-1093.03,0.00027397,5]
[364768517,1749235842305,-871.47,0.00027397,5]
[364768518,1749235842314,-500.0,0.00027397,5]
[364768519,1749235842323,-480.0,0.00027397,5]
[364768520,1749235842332,-473.133255,0.00027397,7]
[364768521,1749235842343,-480.0,0.00027397,5]
[364768522,1749235842351,-151.0,0.00027397,7]
[364768523,1749235842360,-480.0,0.00027397,5]
[364768524,1749235842370,-951.65,0.00027397,5]
[364768525,1749235842380,-872.07,0.00027397,5]
[364768526,1749235842390,-473.133255,0.00027397,7]
[364768527,1749235842399,-480.0,0.00027397,5]
[364768528,1749235842409,-237.337415,0.00027397,7]
[364768529,1749235842418,-480.0,0.00027397,5]
[364768530,1749235842428,-480.0,0.00027397,5]
[364768531,1749235842437,-237.337415,0.00027397,7]
[364768532,1749235842447,-480.0,0.00027397,5]
[364768533,1749235842456,-480.0,0.00027397,5]
[364768534,1749235842466,-499.23357579,0.00027397,5]
[364768535,1749235842476,-480.0,0.00027397,5]
[364768536,1749235842485,-201.8274199,0.00027397,5]
[364768537,1749235842496,-941.69,0.00027397,5]
[364768538,1749235842505,-151.0,0.00027397,7]
[364768539,1749235842514,-464.51833938,0.00027397,5]
[364768540,1749235842523,-1438.07,0.00027397,5]
[364768541,1749235842533,-480.0,0.00027397,5]
[364768542,1749235842542,-580.42,0.00027397,5]
[364768543,1749235842551,-1749.13,0.00027397,5]
[364768544,1749235842561,-480.0,0.00027397,5]
[364768545,1749235842570,-480.0,0.00027397,5]
[364768546,1749235842579,-668.14,0.00027397,5]
[364768547,1749235842589,-845.16,0.00027397,5]
[364768548,1749235842599,-200.0,0.00027397,2]
[364768549,1749235842608,-480.0,0.00027397,5]
[364768550,1749235842618,-458.49969352,0.00027397,5]
[364768551,1749235842627,-933.69,0.00027397,5]
[364768552,1749235842637,-575.4,0.00027397,5]
[364768553,1749235842649,-480.0,0.00027397,5]
[364768554,1749235842658,-480.0,0.00027397,5]
[364768555,1749235842668,-530.82406645,0.00027397,5]
[364768556,1749235842679,-963.26,0.00027397,5]
[364768557,1749235842691,-480.0,0.00027397,5]
[364768559,1749235842700,-480.0,0.00027397,5]
[364768560,1749235842709,-480.0,0.00027397,5]
[364768561,1749235842719,-509.1,0.00027397,5]
[364768562,1749235842730,-1346.270536,0.00027397,7]
[364768563,1749235842739,-1000.0,0.00027397,5]
[364768564,1749235842749,-480.0,0.00027397,5]
[364768565,1749235842760,-625.79225979,0.00027397,5]
[364768566,1749235842771,-1346.270536,0.00027397,7]
[364768567,1749235842781,-513.37735951,0.00027397,5]
[364768568,1749235842790,-903.81,0.00027397,5]
[364768569,1749235842800,-480.0,0.00027397,5]
[364768570,1749235842809,-480.0,0.00027397,5]
[364768571,1749235842819,-480.0,0.00027397,5]
[364768572,1749235842829,-480.0,0.00027397,5]
[364768574,1749235842839,-943.41,0.00027397,5]
[364768576,1749235842850,-453.8907037,0.00027397,5]
[364768577,1749235843148,-272.38234618,0.00027397,5]
[364768578,1749235843168,-150.0,0.00027397,5]
[364768579,1749235843178,-10217.29,0.00027397,5]
[364768580,1749235843188,-150.0,0.00027397,5]
[364768581,1749235843197,-446.02258634,0.00027397,5]
[364768582,1749235843209,-1010.33,0.00027397,5]
[364768583,1749235843218,-150.0,0.00027397,5]
[364768584,1749235843228,-150.0,0.00027397,5]
[364768585,1749235843238,-150.0,0.00027397,5]
[364768586,1749235843248,-150.0,0.00027397,5]
[364768587,1749235843258,-150.0,0.00027397,5]
[364768588,1749235843268,-150.0,0.00027397,5]
[364768589,1749235843278,-586.96,0.00027397,5]
[364768590,1749235843287,-150.0,0.00027397,5]
[364768591,1749235843297,-150.0,0.00027397,5]
[364768592,1749235843308,-480.0,0.00027397,5]
[364768593,1749235843319,-150.0,0.00027397,5]
[364768594,1749235843329,-2799.69,0.00027397,5]
[364768595,1749235843339,-480.0,0.00027397,5]
[364768596,1749235843349,-480.0,0.00027397,5]
[364768597,1749235843359,-554.38,0.00027397,5]
[364768598,1749235843369,-421.56590944,0.00027397,5]
[364768599,1749235843379,-480.0,0.00027397,5]
[364768600,1749235843389,-819.94,0.00027397,5]
[364768601,1749235843400,-449.63555096,0.00027397,5]
[364768602,1749235843409,-480.0,0.00027397,5]
[364768603,1749235843420,-480.0,0.00027397,5]
[364768604,1749235843430,-572.92,0.00027397,5]
[364768605,1749235843440,-1896.47,0.00027397,5]
[364768606,1749235843450,-561.74,0.00027397,5]
[364768607,1749235843459,-1839.01,0.00027397,5]
[364768608,1749235843469,-544.49,0.00027397,5]
[364768609,1749235843479,-480.0,0.00027397,5]
[364768610,1749235843488,-480.0,0.00027397,5]
[364768611,1749235843498,-480.0,0.00027397,5]
[364768612,1749235843508,-2277.79,0.00027397,5]
[364768613,1749235843517,-1403.13,0.00027397,5]
[364768614,1749235843527,-480.0,0.00027397,5]
[364768615,1749235843537,-1332.21,0.00027397,5]
[364768616,1749235843547,-842.76,0.00027397,5]
[364768617,1749235843557,-3156.15,0.00027397,5]
[364768618,1749235843567,-1138.57,0.00027397,5]
[364768619,1749235843576,-480.0,0.00027397,5]
[364768620,1749235843586,-488.22,0.00027397,5]
[364768621,1749235843595,-9036.88,0.00027397,5]
[364768622,1749235843605,-632.23,0.00027397,5]
[364768623,1749235843615,-1611.29,0.00027397,5]
[364768624,1749235843625,-985.57,0.00027397,5]
[364768625,1749235843634,-480.0,0.00027397,5]
[364768626,1749235843644,-480.0,0.00027397,5]
[364768627,1749235843654,-252.915718,0.00027397,7]
[364768628,1749235843664,-173.979423,0.00027397,7]
[364768629,1749235843674,-1128.22,0.00027397,5]
[364768630,1749235843686,-3231.1,0.00027397,5]
[364768631,1749235843696,-480.0,0.00027397,5]
[364768632,1749235843706,-368.908945,0.00027397,7]
[364768633,1749235843715,-252.915718,0.00027397,7]
[364768634,1749235843727,-480.0,0.00027397,5]
[364768635,1749235843737,-173.979423,0.00027397,7]
[364768636,1749235843747,-777.77,0.00027397,5]
[364768637,1749235843756,-368.908945,0.00027397,7]
[364768638,1749235843768,-150.0,0.00027397,2]
[364768639,1749235843778,-500.29,0.00027397,5]
[364768640,1749235843788,-447.71497567,0.00027397,5]
[364768641,1749235843798,-584.42,0.00027397,5]
[364768642,1749235843808,-934.57,0.00027397,5]
[364768643,1749235843819,-480.0,0.00027397,5]
[364768644,1749235843829,-1357.44,0.00027397,5]
[364768645,1749235843839,-151.0,0.00027397,7]
[364768646,1749235843849,-964.72,0.00027397,5]
[364768647,1749235843859,-204.249444,0.00027397,7]
[364768648,1749235843869,-634.22,0.00027397,5]
[364768649,1749235843878,-1253.5,0.00027397,5]
[364768650,1749235843888,-2635.2,0.00027397,5]
[364768651,1749235843898,-762.65,0.00027397,5]
[364768652,1749235843907,-480.0,0.00027397,5]
[364768653,1749235843917,-3049.53,0.00027397,5]
[364768654,1749235843926,-1146.22,0.00027397,5]
[364768655,1749235843936,-480.0,0.00027397,5]
[364768656,1749235843945,-480.0,0.00027397,5]
[364768657,1749235843955,-480.0,0.00027397,5]
[364768658,1749235843964,-1272.534564,0.00027397,7]
[364768659,1749235843974,-1279.29,0.00027397,5]
[364768660,1749235843983,-480.0,0.00027397,5]
[364768661,1749235843993,-480.0,0.00027397,5]
[364768662,1749235844004,-1272.534564,0.00027397,7]
[364768663,1749235844015,-1168.14,0.00027397,5]
[364768664,1749235844024,-480.0,0.00027397,5]
[364768665,1749235844034,-480.0,0.00027397,5]
[364768666,1749235844044,-480.0,0.00027397,5]
[364768667,1749235844054,-480.0,0.00027397,5]
[364768668,1749235844063,-1000.0,0.00027397,5]
[364768669,1749235844073,-480.0,0.00027397,5]
[364768670,1749235844083,-2995.42,0.00027397,5]
[364768671,1749235844092,-480.0,0.00027397,5]
[364768672,1749235844102,-2177.26,0.00027397,5]
[364768673,1749235844112,-480.0,0.00027397,5]
[364768674,1749235844121,-575.24,0.00027397,5]
[364768675,1749235844131,-480.0,0.00027397,5]
[364768676,1749235844141,-726.46,0.00027397,5]
[364768677,1749235844151,-151.0,0.00027397,7]
[364768678,1749235844162,-1000.0,0.00027397,2]
[364768679,1749235844172,-1065.19,0.00027397,5]
[364768680,1749235844181,-500.0,0.00027397,5]
[364768681,1749235844191,-500.0,0.00027397,5]
[364768682,1749235844202,-500.0,0.00027397,5]
[364768683,1749235844213,-480.0,0.00027397,5]
[364768684,1749235844223,-899.95,0.00027397,5]
[364768685,1749235844233,-480.0,0.00027397,5]
[364768686,1749235844242,-480.0,0.00027397,5]
[364768687,1749235844251,-480.0,0.00027397,5]
[364768688,1749235844261,-1532.84,0.00027397,5]
[364768689,1749235844271,-4134.42594,0.00027397,2]
[364768690,1749235844280,-480.0,0.00027397,5]
[364768691,1749235844290,-1474.16,0.00027397,5]
[364768692,1749235844300,-11668.77,0.00027397,5]
[364768693,1749235844309,-1868.47,0.00027397,5]
[364768694,1749235844319,-770.95,0.00027397,5]
[364768695,1749235844329,-480.000001,0.00027397,5]
[364768696,1749235844339,-480.0,0.00027397,5]
[364768697,1749235844348,-4220.2,0.00027397,5]
[364768698,1749235844357,-1197.02,0.00027397,5]
[364768699,1749235844367,-1152.81,0.00027397,5]
[364768700,1749235844379,-480.0,0.00027397,5]
[364768701,1749235844388,-1469.35,0.00027397,5]
[364768702,1749235844399,-1744.14,0.00027397,5]
[364768703,1749235844408,-817.36,0.00027397,5]
[364768704,1749235844418,-265.946709,0.00027397,7]
[364768705,1749235844428,-480.0,0.00027397,5]
[364768706,1749235844437,-517.44,0.00027397,5]
[364768707,1749235844447,-840.34,0.00027397,5]
[364768708,1749235844456,-2470.02,0.00027397,5]
[364768709,1749235844466,-480.0,0.00027397,5]
[364768710,1749235844475,-480.0,0.00027397,5]
[364768711,1749235844485,-265.946709,0.00027397,7]
[364768712,1749235844494,-1287.44,0.00027397,5]
[364768713,1749235844504,-484.88468181,0.00027397,5]
[364768714,1749235844513,-482.3023626,0.00027397,5]
[364768715,1749235844523,-1242.04,0.00027397,5]
[364768716,1749235844532,-480.0,0.00027397,5]
[364768717,1749235844542,-1322.09,0.00027397,5]
[364768718,1749235844552,-151.0,0.00027397,7]
[364768719,1749235844562,-686.82,0.00027397,5]
[364768720,1749235844571,-151.0,0.00027397,7]
[364768721,1749235844581,-480.0,0.00027397,5]
[364768722,1749235844590,-480.0,0.00027397,5]
[364768723,1749235844600,-597.58,0.00027397,5]
[364768724,1749235844610,-480.0,0.00027397,5]
[364768725,1749235844619,-480.0,0.00027397,5]
[364768726,1749235844629,-986.35,0.00027397,5]
[364768727,1749235844638,-7769.67,0.00027397,5]
[364768728,1749235844648,-618.15788722,0.00027397,5]
[364768729,1749235844658,-480.0,0.00027397,5]
[364768730,1749235844668,-480.0,0.00027397,5]
[364768731,1749235844678,-628.45,0.00027397,5]
[364768732,1749235844692,-670.32,0.00027397,5]
[364768733,1749235844702,-480.0,0.00027397,5]
[364768734,1749235844711,-1543.01,0.00027397,5]
[364768735,1749235844721,-1293.64,0.00027397,5]
[364768736,1749235844731,-480.0,0.00027397,5]
[364768737,1749235844741,-1765.26,0.00027397,5]
[364768738,1749235844750,-480.0,0.00027397,5]
[364768739,1749235844760,-219.313061,0.00027397,7]
[364768740,1749235844770,-480.0,0.00027397,5]
[364768741,1749235844779,-480.0,0.00027397,5]
[364768742,1749235844788,-480.0,0.00027397,5]
[364768743,1749235844798,-591.68,0.00027397,5]
[364768744,1749235844807,-966.08,0.00027397,5]
[364768745,1749235844817,-480.0,0.00027397,5]
[364768746,1749235844827,-2051.02,0.00027397,5]
[364768747,1749235844837,-219.313061,0.00027397,7]
[364768748,1749235844847,-552.92,0.00027397,5]
[364768749,1749235844857,-480.0,0.00027397,5]
[364768750,1749235844866,-480.0,0.00027397,5]
[364768751,1749235844876,-480.0,0.00027397,5]
[364768752,1749235844886,-957.91,0.00027397,5]
[364768753,1749235844896,-522.01,0.00027397,5]
[364768754,1749235844906,-15613.76,0.00027397,5]
[364768755,1749235844916,-480.0,0.00027397,5]
[364768756,1749235844925,-480.0,0.00027397,5]
[364768757,1749235844935,-3248.23,0.00027397,5]
[364768758,1749235844944,-480.0,0.00027397,5]
[364768759,1749235844953,-1918.96,0.00027397,5]
[364768760,1749235844963,-151.0,0.00027397,7]
[364768761,1749235844972,-480.0,0.00027397,5]
[364768762,1749235844982,-3308.06,0.00027397,5]
[364768763,1749235844992,-480.0,0.00027397,5]
[364768764,1749235845001,-480.0,0.00027397,5]
[364768765,1749235845011,-642.51,0.00027397,5]
[364768766,1749235845020,-1755.2,0.00027397,5]
[364768767,1749235845030,-480.0,0.00027397,5]
[364768768,1749235845039,-300.0,0.00027397,2]
[364768769,1749235845048,-480.0,0.00027397,5]
[364768770,1749235845059,-480.0,0.00027397,5]
[364768771,1749235845068,-586.76,0.00027397,5]
[364768772,1749235845078,-480.0,0.00027397,5]
[364768773,1749235845087,-151.0,0.00027397,7]
[364768774,1749235845096,-151.0,0.00027397,7]
[364768775,1749235845105,-480.0,0.00027397,5]
[364768776,1749235845116,-507.85,0.00027397,5]
[364768777,1749235845126,-1009.78,0.00027397,5]
[364768778,1749235845135,-480.0,0.00027397,5]
[364768779,1749235845145,-1571.86,0.00027397,5]
[364768780,1749235845154,-151.0,0.00027397,7]
[364768781,1749235845164,-11726.76,0.00027397,5]
[364768782,1749235845173,-480.0,0.00027397,5]
[364768783,1749235845182,-487.06,0.00027397,5]
[364768784,1749235845191,-3330.44,0.00027397,5]
[364768785,1749235845200,-480.0,0.00027397,5]
[364768786,1749235845209,-480.0,0.00027397,5]
[364768787,1749235845219,-560.6,0.00027397,5]
[364768788,1749235845228,-560.6,0.00027397,5]
[364768789,1749235845238,-560.6,0.00027397,5]
[364768790,1749235845247,-560.6,0.00027397,5]
[364768791,1749235845256,-587.18,0.00027397,5]
[364768792,1749235845265,-560.6,0.00027397,5]
[364768793,1749235845275,-480.0,0.00027397,5]
[364768794,1749235845284,-480.0,0.00027397,5]
[364768795,1749235845293,-480.0,0.00027397,5]
[364768796,1749235845302,-803.06,0.00027397,5]
[364768797,1749235845312,-480.0,0.00027397,5]
[364768798,1749235845321,-500.0,0.00027397,5]
[364768799,1749235845330,-500.0,0.00027397,5]
[364768800,1749235845339,-500.0,0.00027397,5]
[364768801,1749235845351,-993.53,0.00027397,5]
[364768802,1749235845360,-500.0,0.00027397,5]
[364768803,1749235845369,-500.0,0.00027397,5]
[364768804,1749235845379,-660.42,0.00027397,5]
[364768805,1749235845388,-480.0,0.00027397,5]
[364768806,1749235845398,-1545.01,0.00027397,5]
[364768807,1749235845408,-1620.12,0.00027397,5]
[364768808,1749235845418,-524.61,0.00027397,5]
[364768809,1749235845427,-1105.53,0.00027397,5]
[364768810,1749235845436,-461.88179472,0.00027397,5]
[364768811,1749235845445,-480.0,0.00027397,5]
[364768812,1749235845455,-480.0,0.00027397,5]
[364768813,1749235845464,-600.8,0.00027397,5]
[364768814,1749235845473,-649.56,0.00027397,5]
[364768815,1749235845482,-1548.31,0.00027397,5]
[364768816,1749235845491,-1753.23,0.00027397,5]
[364768817,1749235845500,-863.65,0.00027397,5]
[364768818,1749235845510,-597.5,0.00027397,5]
[364768819,1749235845519,-3080.35,0.00027397,5]
[364768820,1749235845529,-480.0,0.00027397,5]
[364768821,1749235845611,-480.0,0.00027397,5]
[364768822,1749235845620,-700.61,0.00027397,5]
[364768823,1749235845630,-5287.4,0.00027397,5]
[364768824,1749235845640,-480.0,0.00027397,5]
[364768825,1749235845649,-391.85617348,0.00027397,5]
[364768826,1749235845658,-4468.21,0.00027397,5]
[364768827,1749235845668,-2266.06,0.00027397,5]
[364768828,1749235845677,-1358.96,0.00027397,5]
[364768829,1749235845687,-493.59920009,0.00027397,5]
[364768830,1749235845699,-547.41,0.00027397,5]
[364768831,1749235845709,-522.95,0.00027397,5]
[364768832,1749235845718,-480.0,0.00027397,5]
[364768833,1749235845727,-200.0,0.00027397,2]
[364768834,1749235845737,-480.0,0.00027397,5]
[364768835,1749235845747,-151.0,0.00027397,7]
[364768836,1749235845756,-480.0,0.00027397,5]
[364768837,1749235845765,-680.34,0.00027397,5]
[364768838,1749235845775,-480.0,0.00027397,5]
[364768839,1749235845784,-480.0,0.00027397,5]
[364768840,1749235845793,-165.886972,0.00027397,7]
[364768841,1749235845803,-728.29,0.00027397,5]
[364768842,1749235845812,-480.0,0.00027397,5]
[364768843,1749235845822,-480.0,0.00027397,5]
[364768844,1749235845831,-480.0,0.00027397,5]
[364768845,1749235845841,-825.52,0.00027397,5]
[364768846,1749235845852,-229.808585,0.00027397,7]
[364768847,1749235845862,-3555.42,0.00027397,5]
[364768848,1749235845872,-436.80707198,0.00027397,5]
[364768849,1749235845881,-3076.73,0.00027397,5]
[364768850,1749235845891,-820.31,0.00027397,5]
[364768851,1749235845900,-480.0,0.00027397,5]
[364768852,1749235845911,-480.0,0.00027397,5]
[364768853,1749235845920,-480.0,0.00027397,5]
[364768854,1749235845931,-640.97,0.00027397,5]
[364768855,1749235845942,-480.0,0.00027397,5]
[364768856,1749235845952,-499.1341257,0.00027397,5]
[364768857,1749235845961,-5262.38,0.00027397,5]
[364768858,1749235845971,-480.0,0.00027397,5]
[364768859,1749235845980,-713.32,0.00027397,5]
[364768860,1749235845989,-7766.09,0.00027397,5]
[364768861,1749235845999,-480.0,0.00027397,2]
[364768862,1749235846010,-1713.32,0.00027397,5]
[364768863,1749235846019,-480.0,0.00027397,5]
[364768864,1749235846031,-1437.37431,0.00027397,7]
[364768865,1749235846041,-480.0,0.00027397,5]
[364768866,1749235846051,-480.0,0.00027397,5]
[364768867,1749235846060,-480.0,0.00027397,5]
[364768868,1749235846071,-480.0,0.00027397,5]
[364768869,1749235846083,-1250.1,0.00027397,5]
[364768870,1749235846093,-230.36690074,0.00027397,2]
[364768871,1749235846104,-480.0,0.00027397,5]
[364768872,1749235846113,-1724.46,0.00027397,5]
[364768873,1749235846122,-1437.37431,0.00027397,7]
[364768874,1749235846132,-530.09,0.00027397,5]
[364768875,1749235846143,-3124.76,0.00027397,5]
[364768876,1749235846153,-480.0,0.00027397,2]
[364768877,1749235846165,-3288.91,0.00027397,5]
[364768878,1749235846175,-480.0,0.00027397,5]
[364768879,1749235846186,-480.0,0.00027397,5]
[364768880,1749235846194,-480.0,0.00027397,5]
[364768881,1749235846204,-2017.76,0.00027397,5]
[364768882,1749235846214,-480.0,0.00027397,5]
[364768883,1749235846225,-549.3,0.00027397,2]
[364768884,1749235846235,-158.73,0.00027397,2]
[364768885,1749235846245,-159.76273906,0.00027399,2]
[364768886,1749235846256,-150.0,0.00027403,2]
[364768887,1749235846265,-151.0,0.00027409,7]
[364768888,1749235846274,-6156.09488497,0.00027409,2]
[364768889,1749235846283,-4205.86472383,0.0002741,2]
[364768890,1749235846294,-414.41905639,0.00027441,2]
[364768891,1749235846304,-164.51267781,0.00027441,2]
[364768892,1749235846313,-6156.09488497,0.00027461,2]
[364768894,1749235846322,-4205.86472383,0.00027461,2]
[364768896,1749235846332,-512.57394512,0.00027461,2]
[364768898,1749235846342,-288.47319772,0.00027461,2]
[364768899,1749235846352,-204.0,0.00027468,5]
[364768900,1749235846362,-152.0,0.00027478,3]
[364768901,1749235846372,-1461.58275095,0.00027488,5]
[364768902,1749235846381,-560.6,0.00027491,5]
[364768903,1749235846392,-500.0,0.00027499,2]
[364768904,1749235846402,-2400.0,0.000275,10]
[364768905,1749235846411,-150.0,0.00027503,2]
[364768906,1749235846420,-9228.148532,0.00027521,7]
[364768907,1749235846429,-9228.148532,0.00027521,7]
[364768908,1749235846438,-214.477622,0.00027521,7]
[364768909,1749235846447,-214.477622,0.00027521,7]
[364768910,1749235846457,-1272.534564,0.00027521,7]
[364768911,1749235846466,-1272.534564,0.00027521,7]
[364768912,1749235846475,-1000.0,0.00027531,2]
[364768913,1749235846485,-151.0,0.00027532,7]
[364768914,1749235846494,-151.0,0.00027532,7]
[364768915,1749235846504,-151.0,0.00027532,7]
[364768916,1749235846513,-151.0,0.00027532,7]
[364768917,1749235846522,-151.0,0.00027532,7]
[364768918,1749235846531,-151.0,0.00027532,7]
[364768919,1749235846540,-151.0,0.00027532,7]
[364768920,1749235846550,-182.794455,0.00027532,7]
[364768921,1749235846559,-151.0,0.00027532,7]
[364768922,1749235846568,-182.794455,0.00027532,7]
[364768923,1749235846577,-151.0,0.00027532,7]